Cogmind - Beta 15 @@@ ROGUE MODE // 2025.08.07 @ 18:43:38 Player: Zoe Result: Destroyed by Y-45 Defender with Beam Rifle Performance ------------- Evolutions (2) 1000 Regions Visited (4) 800 Robots Destroyed (71) 355 Value Destroyed (2114) 2114 Prototype IDs (0) 0 Alien Tech Used (0) 0 Bonus (213) 213 TOTAL SCORE: 4482 Bonus ------- High Alert Combat Kills 213 Cogmind --------- Core Integrity 0/550 Matter 299/300 Energy 160/160 System Corruption 2% Temperature Cool (9) Movement Walking (120) Location -8/Materials Parts ------- > --- POWER (1) -------- Light Nuclear Core > --- PROPULSION (3) --- Aluminum Leg Aluminum Leg Carbon-fiber Leg > --- UTILITY (5) ------ Improved Heat Sink Medium Storage Unit Improved Signal Interpreter System Shield System Shield > --- WEAPON (2) ------- Heavy Flail > --- INVENTORY (10) --- Light Ion Engine Improved Ion Engine Light Nuclear Core Aluminum Leg Shock Rifle Shock Rifle Field Laser Heavy Particle Cannon Rocket Launcher Peak State ------------ > --- POWER ------------ Light Nuclear Core > --- PROPULSION ------- Light Treads Aluminum Leg Carbon-fiber Leg > --- UTILITY ---------- Medium Storage Unit Improved Utility Shielding Hardened Medium Armor Plating Shield Generator System Shield > --- WEAPON ----------- Flail Heavy Flail > --- INVENTORY -------- Improved Signal Interpreter System Shield Shock Rifle Shock Rifle Field Laser Heavy Particle Cannon Rocket Launcher [Rating: 27] Favorites ----------- Power Ion Engine Engine Ion Engine Power Core Light Nuclear Core Propulsion Light Treads Treads Light Treads Leg Aluminum Leg Utility Small Storage Unit Device Seismic Detector Storage Small Storage Unit Processor Improved Signal Interpreter Hackware System Shield Protection Improved Utility Shielding Weapon Medium Laser Energy Gun Medium Laser Energy Cannon Subdweller Beam Cannon Ballistic Gun Light Assault Rifle Launcher Rocket Launcher Special Weapon Enhanced Flamer Impact Weapon Flail Build | -11 -10 -10 -10 -8 ------- Run | Yrd Mat Min Sub Mat Slots Evolved 4 | . . . . 4 Power . | . . . . . Propulsion 1 | . . . . 1 Utility 3 | . . . . 3 Weapon . | . . . . . Parts Attached 57 | 8 1 . 14 34 Power 9 | 1 . . 4 4 Engine 7 | 1 . . 4 2 Core 2 | . . . . 2 Reactor . | . . . . . Propulsion 18 | 2 . . 3 13 Treads 9 | 2 . . 1 6 Leg 9 | . . . 2 7 Wheel . | . . . . . Hover . | . . . . . Flight . | . . . . . Utility 17 | 3 . . 3 11 Device 9 | 2 . . 3 4 Storage 2 | 1 . . . 1 Processor 1 | . . . . 1 Hackware 2 | . . . . 2 Protection 3 | . . . . 3 Artifact . | . . . . . Weapon 13 | 2 1 . 4 6 Energy Gun 4 | 1 . . 1 2 Energy Cannon 2 | . . . 1 1 Ballistic Gun 2 | 1 . . 1 . Ballistic Cannon . | . . . . . Launcher 1 | . . . 1 . Special Weapon 2 | . 1 . . 1 Impact Weapon 2 | . . . . 2 Slashing Weapon . | . . . . . Piercing Weapon . | . . . . . Special Melee Weapon . | . . . . . Unidentified Prototypes . | . . . . . Parts Lost 28 | . . . 7 21 Power 5 | . . . 1 4 Propulsion 9 | . . . 3 6 Utility 8 | . . . 1 7 Weapon 6 | . . . 2 4 Highest Loss Streak 5 | . . . 5 5 To Critical Strikes . | . . . . . Average Backups 6 | 4 6 7 6 7 Power . | . 1 1 1 . Propulsion . | 1 2 2 1 . Utility . | . 1 1 . . Weapon 4 | 1 2 3 3 5 Tool/Special . | . . . . . Unused Backups 10 | . . . 2 8 Power 5 | . . . 1 4 Propulsion . | . . . . . Utility . | . . . . . Weapon 5 | . . . 1 4 Tool/Special . | . . . . . Average Slot Usage (%) 86 | . 100 100 91 81 Engine 9 | . 14 14 13 5 Core 1 | . . . . 3 Treads 13 | . 28 28 19 6 Leg 5 | . . . . 9 Device 13 | . 14 14 13 12 Storage 11 | . 14 14 14 9 Hackware 5 | . . . . 9 Protection 5 | . . . . 9 Energy Gun 7 | . 13 14 12 3 Energy Cannon 6 | . . . 12 3 Ballistic Gun 1 | . 14 14 1 . Impact Weapon 3 | . . . . 6 Peak Build Rating 27 | 9 8 10 11 27 Average Rating 15 | 6 7 9 8 21 On Entrance 7 | . 7 8 10 11 Naked Turns . | . . . . . Heaviest Build 33 | 14 14 14 24 33 Greatest Support 63 | 40 40 40 40 63 Greatest Overweight (x) 8 | . . . 1 8 Average Overweight (x) . | . . . . . Largest Inventory Capacity 10 | 8 8 8 8 10 Average Capacity 8 | 7 8 8 8 8 Most Carried 9 | 6 7 8 8 9 Average Carried 6 | 4 6 7 6 7 Final Capacity 10 | 8 8 8 8 10 Final Carried 9 | 6 7 8 8 9 Class Distribution -------------------- 87% | Mutant 9% | Hacker-Mutant Dominant Class ---------------- Mutant | -10/Materials Mutant | -10/Mines Mutant | -10/Subcaves Mutant | -8/Materials Resources | -11 -10 -10 -10 -8 ----------- Run | Yrd Mat Min Sub Mat Matter Collected 1038 | 280 37 . 275 446 Remotely . | . . . . . Salvage Created 2657 | 165 54 . 287 2151 Parts 111 | 10 1 . 21 79 Haulers Intercepted 4 | . . . . 4 Recyclers Shooed 1 | . . . . 1 Parts Field Recycled . | . . . . . Retrieved Matter . | . . . . . Parts Self-Destructed 5 | . . . 5 . Prevented . | . . . . . Kills | -11 -10 -10 -10 -8 ------- Run | Yrd Mat Min Sub Mat Combat Hostiles Destroyed 48 | . 1 . 8 39 Melee 15 | . . . . 15 Guns 6 | . 1 . 1 4 Cannons 7 | . . . 3 4 AOE 3 | . . . 3 . Classes Destroyed 13 | 2 1 . 2 8 Worker 6 | . . . . 6 Builder 4 | . . . . 4 Tunneler 4 | 4 . . . . Hauler 4 | . . . . 4 Recycler 1 | 1 . . . . Operator 1 | . . . . 1 Watcher 3 | . . . . 3 Swarmer 7 | . . . . 7 Grunt 27 | . 1 . . 26 Duelist 1 | . . . . 1 Sentry 5 | . . . 1 4 Hunter 1 | . . . . 1 Subdweller 7 | . . . 7 . Best Kill Streak 7 | 2 1 . 3 7 Combat Bots Only 4 | . 1 . 3 4 Max Kills in Single Turn 2 | 1 1 . 1 2 Gunslinging . | . . . . . Exploded 1 | . . . 1 . Melee 1 | . . . . 1 Uniques/NPCs Destroyed . | . . . . . Combat | -11 -10 -10 -10 -8 -------- Run | Yrd Mat Min Sub Mat Hostile Shots Fired 381 | . 11 . 61 309 Missed 100 | . 1 . 18 81 Hits 281 | . 10 . 43 228 Melee 2 | . . . . 2 Projectile 279 | . 10 . 43 226 AOE 1 | . . . . 1 Critical Strikes 14 | . . . 1 13 Actively Blocked 3 | . . . . 3 Damage Taken 3981 | . 148 . 1025 2808 Core 758 | . 16 . 187 555 Absorbed by Shields 318 | . . . . 318 Redirected to Shielding 204 | . . . . 204 Regen/Repaired (Parts) 48 | . . . . 48 Core Remaining (%) 59 | 100 . . 18 . Volleys Fired 88 | 10 8 . 35 35 Largest 2 | 2 2 . 2 2 Hottest 130 | 70 100 . 130 125 Shots Fired 143 | 20 15 . 52 56 Gun 89 | 20 14 . 23 32 Cannon 37 | . . . 15 22 Launcher 8 | . . . 8 . Special 9 | . 1 . 6 2 Kinetic 33 | 10 7 . 6 10 Thermal 80 | 10 8 . 38 24 Explosive 8 | . . . 8 . Electromagnetic 22 | . . . . 22 Robot Hit Streak 16 | 4 6 . 16 4 Robot Miss Streak 4 | 2 2 . 2 4 Penetration Max . | . . . . . Secondary Targets . | . . . . . Shots Hit Robots 178 | 12 10 . 37 119 Core Hits 57 | 6 3 . 12 36 Critical Kills 4 | . . . 1 3 Critical Parts Destroyed 15 | . . . . 15 Critical Strikes 21 | . . . 1 20 Burn 2 | . . . . 2 Meltdown 1 | . . . 1 . Smash 18 | . . . . 18 Melee Attacks 146 | . . . . 146 Impact 146 | . . . . 146 Slashing . | . . . . . Piercing . | . . . . . Sneak Attacks 10 | . . . . 10 Combat Hostiles 1 | . . . . 1 Follow-up Attacks 2 | . . . . 2 Damage Inflicted 6210 | 124 96 . 982 5008 Guns 844 | 124 96 . 204 420 Cannons 532 | . . . 307 225 Explosions 507 | . . . 471 36 Melee 4303 | . . . . 4303 Ramming 1 | . . . . 1 Kinetic 301 | 50 45 . 40 166 Thermal 880 | 74 51 . 471 284 Explosive 471 | . . . 471 . Electromagnetic 254 | . . . . 254 Impact 4303 | . . . . 4303 Slashing . | . . . . . Piercing . | . . . . . Highest Corruption 2 | . . . . 2 Average Corruption 2 | . . . . 2 Corruption Purged . | . . . . . Corruption Blocked . | . . . . . Effects 21 | . . . . 21 Message Errors 8 | . . . . 8 Matter Fused 7 | . . . . 7 Heat Flow Errors 2 | . . . . 2 Energy Discharges 1 | . . . . 1 Data Loss (minor) 3 | . . . . 3 Overload Shots . | . . . . . Overflow Damage 1318 | . . . 47 1271 Projectiles 24 | . . . . 24 Explosions 47 | . . . 47 . Melee 1247 | . . . . 1247 Knockbacks 23 | . . . . 23 Impact 18 | . . . . 18 Kinetic . | . . . . . Secondary 5 | . . . . 5 Self-Inflicted Damage 234 | . . . 188 46 Shots 8 | . . . 7 1 Rammed . | . . . . . Targets Rammed 1 | . . . . 1 Kicked 1 | . . . . 1 Crushed . | . . . . . Highest Temperature 204 | 80 96 . 72 204 Average Temperature 52 | 28 37 . 16 76 Received Heat Transfer 1225 | . 84 . 90 1051 Siege Activations . | . . . . . Martial Activations . | . . . . . Shielding Activations . | . . . . . Robots Disrupted . | . . . . . Combat Hostiles . | . . . . . Robots Corrupted 20 | . . . . 20 Combat Hostiles 16 | . . . . 16 Parts Fried 20 | . . . . 20 Impact Corruptions 47 | . . . . 47 Robots Melted 1 | . . . 1 . Combat Hostiles 1 | . . . 1 . Parts Melted 8 | 1 . . 5 2 Heat Transferred 2084 | 222 148 . 851 863 Parts Sabotaged . | . . . . . Parts Stolen . | . . . . . Parts Stripped . | . . . . . Power Chain Reactions 1 | . . . . 1 Alert | -11 -10 -10 -10 -8 ------- Run | Yrd Mat Min Sub Mat Maximum Alert Level 3 | . . . . 3 Low Security (%) 53 | 100 100 100 . 45 Level 1 10 | . . . . 12 Level 2 32 | . . . . 38 Level 3 2 | . . . . 3 Level 4 . | . . . . . Level 5 . | . . . . . High Security . | . . . . . Max Security . | . . . . . Peak Influence 712 | 5 45 1 . 712 Initial 1 | . . 1 . . Average 242 | 1 10 . . 286 Influence Increases 1393 | 25 51 . 20 1297 Destroy 0b10 Robot/C 820 | . 20 . 20 780 Destroy 0b10 Robot/NC 120 | 25 . . . 95 Destroy Leader 174 | . 10 . . 164 Successful Hack 37 | . 5 . . 32 Destroy Structure 32 | . 1 . . 31 Lose Combat Pursuer 210 | . 15 . . 195 Influence Decreases 681 | 25 46 5 20 585 Entered New Map 4 | . . 4 . . Time Decay 497 | 25 46 1 20 405 Lost Part 180 | . . . . 180 Squads Dispatched 9 | . . . . 9 Investigation 6 | . . . . 6 Extermination . | . . . . . Reinforcement 1 | . . . . 1 Assault 2 | . . . . 2 Garrison . | . . . . . Intercept . | . . . . . Searches Triggered . | . . . . . Construction Impeded . | . . . . . Haulers Reinforced . | . . . . . Active Scanning Responses . | . . . . . Cargo Convoy Interrupts . | . . . . . Stealth | -11 -10 -10 -10 -8 --------- Run | Yrd Mat Min Sub Mat Distress Signals 3 | . . . . 3 Communications Jammed . | . . . . . Distress Signals . | . . . . . Times Spotted 83 | . 6 . 9 68 Peak Tracking Total 10 | . 4 . 2 10 Tactical Retreats 9 | . 1 . . 8 Traps | -11 -10 -10 -10 -8 ------- Run | Yrd Mat Min Sub Mat Traps Triggered 2 | . . . . 2 Indirectly . | . . . . . Trap Hack Attempts . | . . . . . Triggered . | . . . . . Disarmed . | . . . . . Reprogrammed . | . . . . . Reused . | . . . . . Traps Extracted . | . . . . . Installed . | . . . . . Triggered . | . . . . . Machines | -11 -10 -10 -10 -8 ---------- Run | Yrd Mat Min Sub Mat Machines Disabled . | . . . . . Max in Single Turn . | . . . . . Garrison Access 1 | . . . . 1 Machines Repaired . | . . . . . Machines Dismantled . | . . . . . Machines Sabotaged . | . . . . . Overloaded Fab Kills . | . . . . . Hacking | -11 -10 -10 -10 -8 --------- Run | Yrd Mat Min Sub Mat Machines Accessed 12 | . 1 . 3 8 Terminals 7 | . 1 . . 6 Fabricators . | . . . . . Repair Stations 1 | . . . . 1 Recycling Units . | . . . . . Scanalyzers . | . . . . . Garrison Access 1 | . . . . 1 Total Hacks 45 | . 4 . 7 34 Successful 19 | . 1 . 7 11 Failed 26 | . 3 . . 23 Catastrophic 4 | . 1 . . 3 Database Lockouts . | . . . . . Manual 31 | . 4 . . 27 Terminals 33 | . 4 . . 29 Fabricators . | . . . . . Repair Stations 4 | . . . . 4 Recycling Units . | . . . . . Scanalyzers . | . . . . . Garrison Access 1 | . . . . 1 Terminal Hacks 10 | . . . 7 3 Record 5 | . . . 5 . Robot Analysis 1 | . . . . 1 Open Door 1 | . . . 1 . Terminal Index 1 | . . . . 1 Registered Components 1 | . . . . 1 Release Object 1 | . . . 1 . Fabricator Hacks . | . . . . . Repair Station Hacks 2 | . . . . 2 Scan Component 1 | . . . . 1 Repair 1 | . . . . 1 Recycling Unit Hacks . | . . . . . Scanalyzer . | . . . . . Garrison Access Hacks 1 | . . . . 1 Seal Access 1 | . . . . 1 Unauthorized Hacks 6 | . 1 . . 5 Terminals 6 | . 1 . . 5 Botnet 6 | . 1 . . 5 Fabricators . | . . . . . Repair Stations . | . . . . . Recycling Units . | . . . . . Scanalyzers . | . . . . . Garrison Access . | . . . . . Data Cores Recovered . | . . . . . Used . | . . . . . Hacking Detections 7 | . 1 . . 6 Full Trace Events 7 | . 1 . . 6 Feedback Events . | . . . . . Feedback Blocked . | . . . . . Robot Schematics Acquired . | . . . . . Robots Built . | . . . . . Authchips . | . . . . . Time . | . . . . . Total Robot Build Rating . | . . . . . Part Schematics Acquired . | . . . . . Parts Built . | . . . . . Authchips . | . . . . . Time . | . . . . . Total Part Build Rating . | . . . . . Parts Repaired 1 | . . . . 1 Time 26 | . . . . 26 Parts Recycled . | . . . . . Recycled Matter . | . . . . . Retrieved Matter . | . . . . . Retrieved Components . | . . . . . Parts Scanalyzed . | . . . . . Part Schematics Acquired . | . . . . . Parts Damaged . | . . . . . Bothacking | -11 -10 -10 -10 -8 ------------ Run | Yrd Mat Min Sub Mat Used RIF Installer . | . . . . . Robots Hacked . | . . . . . Non-combat . | . . . . . Combat . | . . . . . Robot Hacks Applied . | . . . . . Relay Couplers Released . | . . . . . Fabnet Peak Effective % . | . . . . . Robots Rewired . | . . . . . Allies Hacked . | . . . . . Hacks Repelled . | . . . . . Allies | -11 -10 -10 -10 -8 -------- Run | Yrd Mat Min Sub Mat Total Allies . | . . . . . Largest Group . | . . . . . Highest-Rated Group . | . . . . . Highest-Rated Ally . | . . . . . Total Orders . | . . . . . Ally Attacks . | . . . . . Total Damage . | . . . . . Kills . | . . . . . Allies Corrupted . | . . . . . Allies Melted . | . . . . . Intel | -11 -10 -10 -10 -8 ------- Run | Yrd Mat Min Sub Mat Active Infowar (turns) 3830 | 99 213 110 1927 1481 Optics 614 | . . . 351 263 Terrain 256 | 76 . 110 70 . Seismic 3207 | 23 213 . 1506 1465 Robot Analysis Total 1 | . . . . 1 Derelict Logs Recovered . | . . . . . Drone Launches . | . . . . . Drone Recoveries . | . . . . . Exploration | -11 -10 -10 -10 -8 ------------- Run | Yrd Mat Min Sub Mat Turns Passed 5389 | 203 213 112 1971 2890 Spaces Moved 2235 | 102 101 44 971 1017 Core 49 | 10 . . . 39 Treads 1574 | 92 101 44 918 419 Legs 612 | . . . 53 559 Wheels . | . . . . . Hover . | . . . . . Flight . | . . . . . Fastest Speed 50 | 50 160 160 120 120 Average Speed 178 | 149 160 160 185 176 Slowest Speed 450 | 160 160 160 240 450 Overloaded Moves . | . . . . . Propulsion Burnouts . | . . . . . Robots Hopped . | . . . . . Potential Cave-ins . | . . . . . Cave-ins Triggered . | . . . . . Exploration Rate (%) 29 | 6 25 9 40 66 Regions Visited 4 Branch Regions 2 Pre-discovered Areas 1 | . . . 1 . Known Exits Taken . | . . . . . Unknown Exits Taken 4 | 1 1 1 1 . Scrap Searched 1 | . . . 1 . Spaces Dug 19 | . 1 . . 18 Terrain Destroyed 81 | . 1 . 49 31 Melee 18 | . . . . 18 Projectile 11 | . 1 . . 10 AOE 52 | . . . 49 3 Terrain Rammed . | . . . . . Walls Destroyed . | . . . . . Machines Disabled . | . . . . . Actions | -11 -10 -10 -10 -8 --------- Run | Yrd Mat Min Sub Mat Total 3275 | 134 136 85 1072 1848 Wait 657 | 2 25 40 26 564 Move 2231 | 101 100 43 970 1017 Hop . | . . . . . Pick Up 63 | 13 1 1 12 36 Fast Attach 5 | . . . . 5 Attach 38 | 7 . . 6 25 Detach . | . . . . . Swap 29 | 1 2 1 14 11 Drop 22 | . . . 8 14 Fire 88 | 10 8 . 35 35 Melee 140 | . . . . 140 Ram . | . . . . . Kick 1 | . . . . 1 Crush . | . . . . . Escape Stasis . | . . . . . Rewire . | . . . . . Trap . | . . . . . Miscellaneous 1 | . . . 1 . Route ------- -11/Scrapyard -10/Materials -10/Mines (discovered 2 exits: [*Mat] / *Sub) -10/Subcaves -8/Materials History --------- Turn | Location | Event 33 | -11/Scrapyard | Discovered new exit (range 14) 204 | -11/Scrapyard | Entered Materials 300 | -10/Materials | Build established: Mutant 385 | -10/Materials | Discovered new exit (range 9) 417 | -10/Materials | Entered Mines 426 | -10/Mines | Met a Derelict bent on vengeance 492 | -10/Mines | Received a Rocket Launcher from a helpful Derelict 505 | -10/Mines | Discovered new exit (range 6) 521 | -10/Mines | Discovered new exit (range 6) 529 | -10/Mines | Entered Subcaves 530 | -10/Subcaves | Approached by a straggling Scientist 534 | -10/Subcaves | Ambushed by Subdwellers from Twisted Machinery 596 | -10/Subcaves | Core integrity fell below 50% 601 | -10/Subcaves | Ambushed by Subdweller buried in earth 638 | -10/Subcaves | Lost 5 parts (1p2n1u1w) 693 | -10/Subcaves | Shifting Twisted Machinery released Riot Gun 757 | -10/Subcaves | Shifting Twisted Machinery released Sub. Beam Cannon 841 | -10/Subcaves | Shifting Twisted Machinery released Sub. Monowheel 870 | -10/Subcaves | Shifting Twisted Machinery released Flamer 948 | -10/Subcaves | Released subatomizers from SUBCON Basin 1262 | -10/Subcaves | Visited Clippyterm 1267 | -10/Subcaves | Learned location of Deep Caves (-7) 1267 | -10/Subcaves | Learned 40 Factory zone layouts 1794 | -10/Subcaves | Shifting Twisted Machinery released Piercing Trap 1822 | -10/Subcaves | Shifting Twisted Machinery released Flamer 2439 | -10/Subcaves | Discovered new exit (range 13) 2441 | -10/Subcaves | Core integrity fell below 20% 2500 | -10/Subcaves | Entered Materials 2500 | -8/Materials | Evolved 4 slots: Propulsion x1, Utility x3 2676 | -8/Materials | Lost 3 parts (1n1u1w) 3463 | -8/Materials | Repaired Lgt. Treads 3937 | -8/Materials | Core integrity fell below 50% 3952 | -8/Materials | Lost 5 parts (1p2n1u1w) 4500 | -8/Materials | First assault squad dispatched 4563 | -8/Materials | Core integrity fell below 20% 4943 | -8/Materials | Lost 3 parts (1p1n1u) 5063 | -8/Materials | Lost 3 parts (2u1w) 5185 | -8/Materials | Build established: Hacker-Mutant 5390 | -8/Materials | Destroyed by Y-45 Defender with Beam Rifle Last Messages --------------- 05300_ ,2RRKUOT CIIJR 5=W1XJWGLPPKZN: 05328_ Sneak attack on U-05 Engineer. 05328_ U-05 Engineer suffers critical hit (Smash). 05328_ Destroyed Lgt. Ion Engine. 05328_ Destroyed Terrain Scan Processor. 05328_ Destroyed Terrain Scanner. 05328_ U-05 Engineer system corrupted by crushing effect. 05329_ U-05 Engineer system terminally corrupted. 05331_ Acquired 9 matter. 05352_ XPOJURU%DXM%|0KMQ 05387_ Sneak attack on A-02 Transporter. 05387_ A-02 Transporter suffers critical hit (Smash). 05387_ Destroyed Lgt. Treads. 05387_ A-02 Transporter system corrupted by crushing effect. 05387_ A-02 Transporter destroyed. Map ----- +----------------------------------------------------+ | ??????????????????# # """"""""" #??????#% """ | | ??????????????????# # """"" " #??????# | | ??????????????????# # % #??????# | | ??????????????????# # ?""" """ #??????########## | | ??????????????????# #???""""""" #???????????????? | | ??????????????????# #?????"? " #???????????????? | | ??????????????????# #???????? #???????????????? | | ??????????????????# #?????????####???????????????? | | ??????????????????# #????????????????????????????? | | ??????????????????# #????????????????????????????? | | ??????????????????# ###??????????????????????????? | | ??????????????????# +??????????????????????????? | | ??????????????????# ###??????????????????????????? | | ??????????????????# #????????????????????????????? | | ??????????????????# #????????????????????????????? | | ??????????????????# #????????????????????????????? | | ??????????????????# #????????????????????????????? | | ??????????????????# #????????????????????????????? | | ??????????????????# #????????????????????????????? | | ??????????????????# #????????????????????????????? | | ??????????????????#+#######????????=?????????????? | | ??????????????????# #??????????????????????? | | ??????????????????# #??????????????????????? | | ??????????????????# """ #??????????????????????? | | ??????????????????# """"" #??##### #?????????? | | ??????????????????# """""@# #?????????? | | ??????????????????# """""=Y% ????????? | | ??????????????????# """==#=* #?????????? | | ??????????????????# !######## #?????????? | | ??????????????????# #??????????????????????? | | ??????????????????# #??????????????????????? | | ??????????????????# #??????????????????????? | | ??????????????????#########??????????????????????? | | | | | | | | | | | | | | | | | | | | | | | | | | | | | | | | | | | +----------------------------------------------------+ Best States ------------- Heat Dissipation 45 Energy Generation 18 Energy Capacity 265 Matter Stores 300 Matter Capacity 300 Sight Range 21 Terrain Scan Range 16 Terrain Scan Density 10 Armor Coverage 225 Utility Shielding 66 Evasion (%) 55 Recoil Reduction 3 Defensive Hacking 20 Item Schematics ----------------- None Robot Schematics ------------------ None Fabricated ------------ Nothing Repaired ---------- Lgt. Treads | 65% | -8/Materials Alien Tech Used ----------------- None Achievements -------------- Deadly Force Challenges ------------ None Game ------ Seed BurstLobotomyGuard Manual? 0 Play Time 00:42:26 Cumulative 33.9 hours Start 2025.08.07 @ 18:04:52 End 2025.08.07 @ 18:43:38 Sessions 1 Manual Loads 0 Difficulty Rogue Special Mode None Game No. 67 Rogue 64 Adventurer 3 Explorer 0 Win Type - Total 0 Types 0/0/0/0/0/0/0/0/0/0 Lore% 26 Gallery% 25 Achievement% 26 Wizard Run 0 Options --------- Layout 1 ASCII 0 Keyboard 0 Movement Mouse Keybinds 0 Fullscreen 1 Font 24/Smallcaps Map View 50x35 Zoom Use 0% Tactical HUD 1 Map Filters NONE Filters NONE Steam 1 RUN: 1f72b90f-6571-48fc-b78c-2ad7637468f8